bitfinex-derivatives/quotes_SOLF0:USTF0_20241029
["timestamp","ask_amount","ask_price","bid_price","bid_amount"]
[1730199920336,2.7579,181.4,181.36,8.69771466]
[1730199920541,8.69711466,181.41,181.36,5.93941466]
[1730199921340,2.7577,181.41,181.36,5.93941466]
[1730199921536,2.7577,181.41,181.37,2.7582]
[1730199922041,2.7575,181.42,181.38,5.93941466]
[1730199922248,1.211,181.46,181.4,2.7578]
[1730199922542,2.7574,181.43,181.39,5.93941466]
[1730199923346,2.7574,181.43,181.39,8.69731466]
[1730199923839,8.68340666,181.45,181.39,5.93941466]
[1730199924039,2.7578,181.41,181.36,5.93941466]
[1730199924446,2.7578,181.41,181.37,2.7582]
[1730199931361,2.7578,181.41,181.38,5.93941466]
[1730199931850,2.7572,181.44,181.4,2.7577]
[1730199932050,7.15041466,181.46,181.4,2.7577]
[1730199932245,7.15041466,181.46,181.39,5.93941466]
[1730199932448,2.7574,181.43,181.39,8.69731466]
[1730199932647,2.7574,181.43,181.41,5.93941466]
[1730199934455,7.15041466,181.46,181.41,5.93941466]
[1730199934653,2.7567,181.48,181.45,5.93941466]
[1730199937958,5.93941466,181.5,181.45,5.93941466]
[1730199938162,2.7567,181.47,181.45,5.93941466]
[1730199940564,1.2881,181.53,181.46,5.93941466]
[1730199940963,5.93941466,181.52,181.46,5.93941466]
[1730199941261,1.3046,181.54,181.48,5.93941466]
[1730199941464,7.24401466,181.54,181.48,5.93941466]
[1730199941966,7.24401466,181.54,181.46,5.93941466]
[1730199941967,5.93941466,181.52,181.46,5.93941466]
[1730199942265,5.93941466,181.5,181.44,5.93941466]
[1730199943670,5.93941466,181.49,181.44,5.93941466]
[1730199944270,1.3046,181.54,181.44,5.93941466]
[1730199944569,5.93941466,181.5,181.44,5.93941466]
[1730199945872,1.3046,181.54,181.45,5.93941466]
[1730199946169,5.93941466,181.51,181.45,5.93941466]
[1730199946467,5.93941466,181.53,181.47,5.93941466]
[1730199946867,1.3046,181.54,181.48,5.93941466]
[1730199947757,7.24401466,181.54,181.48,5.93941466]
[1730199949070,5.93941466,181.53,181.48,5.93941466]
[1730199951870,1.3046,181.54,181.48,5.93941466]
[1730199952277,7.24401466,181.54,181.48,5.93941466]
[1730199952567,7.24401466,181.54,181.47,5.93941466]
[1730199953078,5.93941466,181.5,181.44,5.93941466]
[1730199953962,5.93941466,181.5,181.44,8.69651466]
[1730199954768,1.3046,181.54,181.44,5.93941466]
[1730199954969,5.93941466,181.5,181.45,2.757]
[1730199955175,5.93941466,181.5,181.44,5.93941466]
[1730199956175,5.93941466,181.51,181.44,5.93941466]
[1730199959569,1.3046,181.54,181.43,5.93941466]
[1730199959570,5.93941466,181.49,181.43,5.93941466]
[1730199959773,1.3046,181.54,181.43,5.93941466]
[1730199960165,5.93941466,181.5,181.44,2.7572]
[1730199961069,5.93941466,181.51,181.45,8.69631466]
[1730199961373,5.93941466,181.51,181.45,5.93941466]
[1730199961676,1.3046,181.54,181.45,8.69641466]
[1730199961874,5.93941466,181.51,181.45,8.69641466]
[1730199962073,5.93941466,181.51,181.46,8.69621466]
[1730199962375,5.93941466,181.53,181.46,5.93941466]
[1730199962975,5.93941466,181.53,181.48,5.93941466]
[1730199963371,1.3046,181.54,181.48,5.93941466]
[1730199963974,1.3046,181.54,181.48,8.69591466]
[1730199967775,5.93941466,181.53,181.48,8.69591466]
[1730199971383,5.93941466,181.53,181.38,347.6065]
[1730199971584,2.75029694,181.58,181.51,5.93941466]
[1730199971879,2.7549,181.6,181.55,5.93941466]
[1730199972084,8.6829953,181.61,181.55,8.69491466]
[1730199972281,2.74358064,181.61,181.55,8.69491466]
[1730199972484,8.6829953,181.61,181.55,8.69491466]
[1730199974380,2.7548,181.6,181.55,8.69491466]
[1730199974979,8.6829953,181.61,181.55,5.93941466]
[1730199975183,5.93941466,181.6,181.45,2.5269]
[1730199975381,5.93941466,181.6,181.54,5.93941466]
[1730199975582,5.93941466,181.58,181.45,2.5269]
[1730199975887,5.93941466,181.58,181.51,5.93941466]
[1730199976087,2.7554,181.56,181.51,8.69551466]
[1730199977184,2.7555,181.55,181.51,8.69551466]
[1730199977693,5.93941466,181.54,181.45,2.5269]
[1730199977887,5.93941466,181.52,181.46,5.93941466]
[1730199978089,2.7563,181.5,181.46,5.93941466]
[1730199978290,2.7563,181.5,181.45,5.2838]
[1730199978488,2.7563,181.5,181.46,5.93941466]
[1730199978887,2.7562,181.51,181.46,5.93941466]
[1730199979194,5.93941466,181.55,181.49,5.93941466]
[1730199979397,2.7559,181.53,181.49,5.93941466]
[1730199979894,2.7555,181.56,181.51,8.69551466]
[1730199980403,5.93941466,181.58,181.51,8.69551466]
[1730199980584,2.7555,181.56,181.51,8.69551466]
[1730199980791,5.93941466,181.57,181.51,8.69551466]
[1730199981196,5.93941466,181.57,181.45,2.5269]
[1730199981401,5.93941466,181.57,181.51,5.93941466]
[1730199981788,2.7556,181.55,181.51,5.93941466]
[1730199983696,5.93941466,181.53,181.45,2.5269]
[1730199983893,1.2172,181.56,181.45,2.5269]
[1730199984201,5.93941466,181.49,181.43,5.93941466]
[1730199984702,5.93941466,181.49,181.42,5.93941466]
[1730199985103,19.0984,181.55,181.4,8.42731466]
[1730199985104,5.93941466,181.47,181.4,8.42731466]
[1730199985404,5.93941466,181.46,181.4,5.93941466]
[1730199985601,2.7572,181.44,181.4,2.7577]
[1730199986291,5.93941466,181.46,181.4,8.69711466]
[1730199986490,2.7571,181.45,181.4,8.69711466]
[1730199986706,24.6097,181.55,181.43,2.7573]
[1730199986905,5.93941466,181.48,181.42,5.93941466]
[1730199987404,2.7569,181.46,181.4,5.93941466]
[1730199987705,5.93941466,181.43,181.37,1.2783]
[1730199987905,5.93941466,181.42,181.37,7.21771466]
[1730199988202,16.58,181.53,181.4,5.93941466]
[1730199988401,5.93941466,181.47,181.4,5.93941466]
[1730199988702,8.72486871,181.47,181.4,5.93941466]
[1730199989500,5.93941466,181.45,181.38,5.93941466]
[1730199990502,2.7573,181.44,181.4,2.7577]
[1730199990797,5.93941466,181.45,181.4,2.7577]
[1730199991000,1.2274,181.52,181.42,5.93941466]
[1730199991204,2.7567,181.47,181.43,2.7573]
[1730199991800,2.7569,181.46,181.42,2.7575]
[1730199992510,5.93941466,181.48,181.43,2.7573]
[1730199993804,5.93941466,181.48,181.41,5.93941466]
[1730199994009,1.2688,181.55,181.46,5.93941466]
[1730199994217,5.93941466,181.53,181.46,5.93941466]
[1730199994908,1.2688,181.55,181.48,5.93941466]
[1730199995110,5.93941466,181.54,181.48,5.93941466]
[1730199995913,5.93941466,181.54,181.5,2.7563]
[1730199996113,5.93941466,181.54,181.48,5.93941466]
[1730199996604,8.69521466,181.54,181.48,5.93941466]
[1730199997609,8.69521466,181.54,181.49,2.7564]
[1730199998714,5.93941466,181.54,181.48,5.93941466]
[1730199998911,8.69491466,181.56,181.51,2.756]
[1730199999112,1.1852,181.57,181.5,5.93941466]
[1730199999307,7.12461466,181.57,181.5,5.93941466]
[1730199999506,9.87991466,181.57,181.52,2.7559]
[1730200000410,2.7552,181.58,181.53,2.7557]
[1730200000601,5.93941466,181.59,181.53,5.93941466]
[1730200001008,2.7551,181.58,181.54,2.7556]
[1730200003705,5.93941466,181.58,181.53,5.93941466]
[1730200003911,8.69491466,181.56,181.51,2.756]
[1730200005021,3.78,181.55,181.52,2.756]
[1730200007928,6.5355,181.55,181.52,2.756]
[1730200009021,6.5355,181.55,181.51,5.93941466]
[1730200009022,3.78,181.55,181.46,2.4957]
[1730200009225,2.7559,181.53,181.48,5.93941466]
[1730200009724,2.7559,181.53,181.49,2.7564]
[1730200009913,2.7559,181.53,181.48,5.93941466]
[1730200010112,3.78,181.55,181.5,5.93941466]
[1730200010308,6.5356,181.55,181.51,2.756]
[1730200012821,3.78,181.55,181.52,2.7559]
[1730200014511,3.78,181.55,181.52,8.69531466]
[1730200015111,2.7553,181.57,181.53,2.7557]
[1730200015317,3.78,181.56,181.53,2.7557]
[1730200015516,3.78,181.55,181.53,2.7557]
[1730200016825,3.78,181.55,181.46,2.4957]
[1730200017320,2.756,181.52,181.49,2.7564]
[1730200017518,3.82,181.51,181.48,5.93941466]
[1730200017719,3.82,181.51,181.5,5.93941466]
[1730200018118,3.82,181.51,181.5,8.69571466]
[1730200018718,5.93941466,181.58,181.5,8.69571466]
[1730200018719,3.82,181.54,181.53,2.7557]
[1730200018912,3.82,181.55,181.53,8.69511466]
[1730200019112,6.5755,181.55,181.53,8.69511466]
[1730200019719,3.82,181.55,181.53,5.93941466]
[1730200019918,3.82,181.55,181.46,2.4957]
[1730200020117,3.82,181.55,181.51,5.93941466]
[1730200020722,3.82,181.54,181.52,5.93941466]
[1730200020918,3.82,181.54,181.52,8.69521466]
[1730200021124,3.82,181.54,181.52,5.93941466]
[1730200021624,3.82,181.54,181.53,2.7558]
[1730200022928,3.82,181.54,181.51,5.93941466]
[1730200023328,3.82,181.54,181.52,2.7559]
[1730200024721,2.7559,181.53,181.51,2.7561]
[1730200024923,3.82,181.54,181.49,5.93941466]
[1730200025526,3.82,181.54,181.5,2.7562]
[1730200025527,2.756,181.52,181.5,2.7562]
[1730200026025,3.82,181.54,181.5,2.7562]
[1730200026220,2.7559,181.53,181.5,2.7562]
[1730200027126,3.82,181.52,181.51,2.7561]
[1730200030033,6.5755,181.55,181.53,2.7558]
[1730200030230,2.7555,181.55,181.53,2.7558]
[1730200030427,2.7555,181.55,181.53,8.69521466]
[1730200030826,2.7558,181.54,181.51,2.7561]
[1730200031330,2.7558,181.54,181.51,8.69551466]
[1730200031528,2.7558,181.54,181.52,2.7559]
[1730200031921,2.7556,181.55,181.52,2.7559]
[1730200032330,3.82,181.56,181.52,2.7559]
[1730200032527,3.82,181.56,181.51,5.93941466]
[1730200032737,9.75941466,181.56,181.49,5.93941466]
[1730200033239,2.7559,181.53,181.5,2.7562]
[1730200033431,3.82,181.52,181.5,2.7562]
[1730200033933,3.82,181.52,181.49,5.93941466]
[1730200033934,2.7562,181.51,181.49,5.93941466]
[1730200034522,2.7562,181.51,181.49,8.69581466]
[1730200035427,6.5761,181.52,181.49,8.69581466]
[1730200035828,6.5761,181.52,181.48,2.7566]
[1730200035829,3.82,181.52,181.48,2.7566]
[1730200036030,3.82,181.52,181.48,8.69601466]
[1730200036635,2.7562,181.51,181.48,8.69601466]
[1730200037130,2.7562,181.51,181.48,5.93941466]
[1730200037331,2.7562,181.51,181.49,2.7564]
[1730200039332,3.82,181.52,181.48,5.93941466]
[1730200039535,3.82,181.52,181.5,2.7561]
[1730200040036,3.82,181.52,181.51,8.69551466]
[1730200040726,2.7557,181.54,181.51,5.93941466]
[1730200040929,3.82,181.53,181.52,2.756]
[1730200043031,3.82,181.53,181.51,8.69551466]
[1730200043235,3.82,181.53,181.51,5.93941466]
[1730200043433,2.7556,181.55,181.51,5.93941466]
[1730200043630,3.82,181.54,181.52,2.756]
[1730200051246,6.5757,181.54,181.52,2.756]
[1730200054549,3.82,181.54,181.52,2.756]
[1730200055450,3.82,181.54,181.51,5.93941466]
[1730200055653,3.82,181.54,181.53,2.7558]
[1730200055846,3.84,181.56,181.53,2.7558]
[1730200056049,2.7555,181.55,181.52,2.7559]
[1730200059552,5.93941466,181.55,181.49,5.93941466]
[1730200060159,2.7561,181.52,181.49,8.69571466]
[1730200060459,3.84,181.52,181.49,5.93941466]
[1730200060958,2.7562,181.51,181.49,5.93941466]
[1730200062459,2.7562,181.51,181.49,8.69581466]
[1730200063453,3.84,181.52,181.5,2.7563]
[1730200063454,6.596,181.52,181.5,2.7563]
[1730200065358,6.596,181.52,181.49,8.69581466]
[1730200069661,6.596,181.52,181.5,2.7563]
[1730200079867,2.756,181.52,181.5,2.7563]
[1730200082682,3.8,181.53,181.48,8.69601466]
[1730200082976,3.8,181.53,181.48,5.93941466]
[1730200083179,2.7562,181.51,181.49,2.7564]
[1730200083780,2.7564,181.5,181.47,8.69611466]
[1730200083980,5.0044,181.53,181.47,5.93941466]
[1730200085183,5.93941466,181.52,181.46,5.93941466]
[1730200085569,2.7563,181.51,181.47,2.7567]
[1730200085777,5.93941466,181.52,181.47,2.7567]
[1730200086275,2.7564,181.5,181.47,2.7567]
[1730200086478,3.8,181.49,181.47,2.7567]
[1730200087474,3.8,181.49,181.48,5.93941466]
[1730200089081,3.8,181.49,181.48,8.69601466]
[1730200089490,3.8,181.49,181.39,345.2606]
[1730200089786,3.8,181.49,181.44,8.69651466]
[1730200089983,3.8,181.49,181.44,5.93941466]
[1730200090189,2.7568,181.47,181.45,2.757]
[1730200090892,2.7566,181.48,181.45,2.757]
[1730200091188,3.8,181.49,181.44,5.93941466]
[1730200091588,2.7568,181.47,181.44,5.93941466]
[1730200091788,2.7568,181.47,181.44,8.69651466]
[1730200092191,2.7568,181.47,181.45,2.757]
[1730200093709,2.7566,181.48,181.46,2.7568]
[1730200094595,2.7566,181.48,181.45,2.757]
[1730200095901,2.7566,181.48,181.46,2.7568]
[1730200096499,6.5565,181.49,181.46,2.7568]
[1730200096802,6.5565,181.49,181.46,8.69621466]
[1730200097003,3.8,181.49,181.46,8.69621466]
[1730200097405,6.5565,181.49,181.46,8.69621466]
[1730200097902,1.2999,181.52,181.46,5.93941466]
[1730200098108,3.8,181.51,181.49,8.69581466]
[1730200098303,3.8,181.51,181.49,5.93941466]
[1730200098508,3.8,181.51,181.48,5.93941466]
[1730200099103,3.8,181.51,181.48,8.69591466]
[1730200099299,3.8,181.51,181.48,5.93941466]
[1730200100007,6.5563,181.51,181.46,5.93941466]
[1730200100916,2.7563,181.5,181.47,2.7566]
[1730200101312,3.8,181.51,181.47,2.7566]
[1730200101515,6.5562,181.51,181.47,2.7566]
[1730200102219,6.5562,181.51,181.46,5.93941466]
[1730200102418,6.5562,181.51,181.48,2.7566]
[1730200105009,3.8,181.51,181.46,5.93941466]
[1730200105213,12.4991483,181.51,181.44,5.93941466]
[1730200105411,5.93941466,181.49,181.44,5.93941466]
[1730200105719,6.55973364,181.51,181.42,2.7575]
[1730200105720,8.69641466,181.46,181.42,2.7575]
[1730200105906,3.8,181.45,181.42,2.7575]
[1730200108319,2.7573,181.44,181.41,5.93941466]
[1730200108515,2.7573,181.44,181.4,2.7578]
[1730200109820,2.7574,181.43,181.4,2.7578]
[1730200111824,2.7577,181.41,181.39,8.69731466]
[1730200112027,6.5777,181.41,181.39,8.69731466]
[1730200113119,3.82,181.41,181.39,5.93941466]
[1730200113324,3.82,181.41,181.4,8.69721466]
[1730200114019,1.2231,181.47,181.4,5.93941466]
[1730200114220,3.82,181.46,181.45,5.93941466]
[1730200115719,3.82,181.46,181.45,8.69641466]
[1730200125533,2.7564,181.5,181.45,5.93941466]
[1730200125733,6.5764,181.49,181.48,5.93941466]
[1730200126430,6.5764,181.49,181.47,8.69611466]
[1730200128131,3.82,181.49,181.47,8.69611466]
[1730200132538,3.82,181.49,181.48,5.93941466]
[1730200137431,3.82,181.49,181.47,8.69611466]
[1730200138026,2.7566,181.48,181.45,2.7569]
[1730200138230,2.7566,181.48,181.39,353.3158]
[1730200138430,2.7566,181.48,181.46,5.93941466]
[1730200138938,6.5765,181.49,181.46,5.93941466]
[1730200140540,3.82,181.49,181.46,5.93941466]
[1730200141446,2.7567,181.48,181.46,5.93941466]
[1730200142234,3.82,181.49,181.38,349.034]
[1730200142436,3.82,181.49,181.42,5.93941466]
[1730200142437,9.75941466,181.49,181.42,5.93941466]
[1730200143038,5.93941466,181.47,181.38,344.0]
[1730200143239,5.93941466,181.47,181.41,5.93941466]
[1730200143441,3.82,181.49,181.4,2.7578]
[1730200143442,2.7573,181.44,181.4,2.7578]
[1730200143643,3.8,181.43,181.4,8.69721466]
[1730200143942,3.8,181.43,181.38,344.0]
[1730200144150,5.93941466,181.42,181.38,344.0]
[1730200144740,3.8,181.43,181.38,344.0]
[1730200144741,5.93941466,181.41,181.38,344.0]
[1730200144932,8.68658298,181.41,181.38,344.0]
[1730200145437,2.7579,181.4,181.36,2.7583]
[1730200145736,3.8,181.39,181.36,2.7583]
[1730200151243,2.7583,181.37,181.34,8.69801466]
[1730200152543,2.7583,181.37,181.34,2.7586]
[1730200154149,2.7582,181.38,181.35,2.7585]
[1730200157956,3.8,181.39,181.35,2.7585]
[1730200158159,3.8,181.39,181.34,5.93941466]
[1730200158456,3.8,181.39,181.38,2.7581]
[1730200158853,2.74716832,181.41,181.38,2.7581]
[1730200159052,2.74716832,181.41,181.36,5.93941466]
[1730200159053,3.82,181.41,181.4,5.93941466]
[1730200159255,3.82,181.41,181.4,8.69721466]
[1730200159854,3.82,181.41,181.4,5.93941466]
[1730200160455,3.82,181.41,181.4,8.69721466]
[1730200161359,3.82,181.41,181.4,2.7578]
[1730200161557,6.5777,181.41,181.39,2.7579]
[1730200161748,3.82,181.41,181.36,5.93941466]
[1730200162156,2.758,181.39,181.37,2.7582]
[1730200162762,9.75941466,181.41,181.37,2.7582]
[1730200162961,2.7578,181.4,181.37,2.7582]
[1730200163561,2.7579,181.4,181.37,2.7582]
[1730200166164,2.7579,181.4,181.38,2.7581]
[1730200166468,2.7579,181.4,181.35,5.93941466]
[1730200166866,5.93941466,181.39,181.32,1.2006]
[1730200167061,2.7582,181.38,181.33,5.93941466]
[1730200167258,3.82,181.37,181.33,5.93941466]
[1730200167568,6.5784,181.37,181.32,5.93941466]
[1730200168070,9.75941466,181.37,181.32,5.93941466]
[1730200168570,9.75941466,181.37,181.34,2.7586]
[1730200168770,12.51771466,181.37,181.34,2.7586]
[1730200169870,3.82,181.37,181.36,2.7584]
[1730200170071,2.69553668,181.41,181.34,5.93941466]
[1730200170269,9.75941466,181.4,181.34,5.93941466]
[1730200170468,6.578,181.39,181.36,2.7583]
[1730200171573,3.82,181.39,181.37,2.7582]
[1730200172162,3.82,181.39,181.36,2.7584]
[1730200174678,3.82,181.39,181.37,2.7582]
[1730200175362,3.82,181.39,181.37,2.7581]
[1730200177069,3.82,181.39,181.29,5.5189]
[1730200177272,3.82,181.39,181.36,2.7584]
[1730200179169,3.82,181.39,181.34,5.93941466]
[1730200179370,3.82,181.39,181.38,2.7581]
[1730200183478,9.75941466,181.39,181.34,5.93941466]
[1730200184376,5.93941466,181.38,181.35,2.7585]
[1730200185481,8.69751466,181.38,181.35,2.7585]
[1730200187673,5.93941466,181.38,181.33,5.93941466]
[1730200187881,5.93941466,181.38,181.31,5.93941466]
[1730200188384,5.93941466,181.36,181.29,5.93941466]
[1730200188580,5.93941466,181.36,181.28,1.3084]
[1730200188581,3.82,181.35,181.28,1.3084]
[1730200188782,2.7589,181.33,181.3,2.7593]
[1730200189881,5.93941466,181.33,181.23,1.2835]
[1730200190073,5.93941466,181.33,181.28,2.7596]
[1730200190074,2.7593,181.31,181.28,2.7596]
[1730200190278,3.82,181.3,181.28,2.7596]
[1730200192381,3.82,181.3,181.26,5.93941466]
[1730200192583,3.82,181.3,181.29,2.7595]
[1730200195886,1.2642,181.37,181.28,5.93941466]
[1730200196080,9.75941466,181.36,181.32,2.7589]
[1730200197387,2.7587,181.35,181.32,2.7589]
[1730200198387,2.7587,181.35,181.29,5.93941466]
[1730200198388,3.84,181.34,181.33,2.7589]
[1730200201085,3.84,181.34,181.32,5.93941466]
[1730200201888,3.84,181.34,181.33,2.7589]
[1730200202290,9.77941466,181.34,181.3,2.7592]
[1730200202489,5.93941466,181.32,181.24,344.0]
[1730200202682,5.93941466,181.32,181.25,5.93941466]
[1730200203586,5.93941466,181.32,181.29,2.7595]
[1730200203587,8.69851466,181.32,181.29,2.7595]
[1730200203786,2.7591,181.32,181.29,2.7595]
[1730200203990,3.84,181.34,181.29,2.7594]
[1730200204290,9.77941466,181.34,181.28,5.93941466]
[1730200205290,2.759,181.33,181.3,2.7593]
[1730200205696,9.77941466,181.34,181.28,5.93941466]
[1730200205995,2.7591,181.32,181.29,2.7594]
[1730200206400,2.7591,181.32,181.28,5.93941466]
[1730200207384,2.7589,181.33,181.29,2.7594]
[1730200208190,6.5988,181.34,181.3,2.7592]
[1730200208392,5.93941466,181.33,181.3,2.7592]
[1730200209101,8.69841466,181.33,181.28,5.93941466]
[1730200209594,5.93941466,181.31,181.28,2.7595]
[1730200209803,3.84,181.3,181.25,5.93941466]
[1730200210203,3.84,181.3,181.27,5.93941466]
[1730200211391,3.84,181.3,181.29,2.7595]
[1730200212901,3.84,181.3,181.23,1.2835]
[1730200213205,3.84,181.3,181.28,2.7596]
[1730200213601,3.84,181.3,181.29,2.7595]
[1730200216799,3.84,181.3,181.29,8.69891466]
[1730200217411,5.93941466,181.35,181.34,2.7587]
[1730200217702,3.84,181.35,181.34,2.7587]
[1730200218607,3.84,181.35,181.33,2.7588]
[1730200220809,3.84,181.34,181.33,2.7588]
[1730200221504,3.84,181.34,181.32,5.93941466]
[1730200222101,3.84,181.34,181.33,2.7589]
[1730200222301,3.84,181.36,181.33,5.93941466]
[1730200222711,3.84,181.36,181.35,2.7586]
[1730200227818,3.84,181.36,181.27,350.4115]
[1730200228022,3.84,181.36,181.31,5.93941466]
[1730200228619,6.5985,181.36,181.33,2.7588]
[1730200228818,5.93941466,181.35,181.29,5.93941466]
[1730200229911,8.69801466,181.35,181.32,2.7589]
[1730200231522,12.53791466,181.36,181.33,2.7588]
[1730200231815,3.86,181.35,181.33,5.93941466]
[1730200232015,3.86,181.34,181.33,5.93941466]
[1730200232220,3.86,181.35,181.34,2.7587]
[1730200232511,5.93941466,181.4,181.34,5.93941466]
[1730200232715,6.6181,181.39,181.36,2.7583]
[1730200233311,5.93941466,181.4,181.34,5.93941466]
[1730200233517,3.86,181.39,181.36,5.93941466]
[1730200233919,3.86,181.39,181.37,2.7581]
[1730200235421,3.86,181.39,181.36,5.93941466]
[1730200235616,3.86,181.39,181.38,2.7581]
[1730200239426,3.86,181.39,181.37,2.7582]
[1730200239727,3.86,181.39,181.34,5.93941466]
[1730200241021,5.93941466,181.38,181.35,2.7585]
[1730200242817,8.69761466,181.38,181.34,2.7587]
[1730200245723,2.7583,181.37,181.34,2.7587]
[1730200247130,2.7587,181.35,181.32,2.7589]
[1730200247334,3.86,181.34,181.32,2.7589]
[1730200248626,6.6187,181.34,181.32,2.759]
[1730200248832,3.86,181.34,181.32,2.759]
[1730200249128,2.7589,181.33,181.3,2.7593]
[1730200249319,8.69831466,181.33,181.3,2.7593]
[1730200250131,8.69831466,181.33,181.31,2.7592]
[1730200250523,8.69831466,181.33,181.27,5.93941466]
[1730200251427,8.69831466,181.33,181.3,2.7592]
[1730200253526,8.69851466,181.32,181.29,2.7594]
[1730200253831,5.93941466,181.32,181.22,1.1935]
[1730200254131,5.93941466,181.3,181.24,5.93941466]
[1730200254330,3.86,181.29,181.27,2.7597]
[1730200256940,3.86,181.29,181.28,2.7596]
[1730200260438,6.6195,181.29,181.26,2.7598]
[1730200260636,6.6195,181.29,181.24,5.93941466]
[1730200261043,6.6195,181.29,181.26,2.7599]
[1730200261245,8.69911466,181.28,181.23,5.93941466]
[1730200261439,8.69911466,181.28,181.25,2.76]
[1730200261643,8.69911466,181.28,181.23,5.93941466]
[1730200263340,8.69911466,181.28,181.26,2.7599]
[1730200264242,2.7599,181.26,181.24,2.7602]
[1730200264447,3.86,181.25,181.2,5.93941466]
[1730200265146,3.86,181.25,181.23,2.7602]
[1730200265852,3.86,181.25,181.24,2.7602]
[1730200266248,6.6202,181.25,181.2,5.93941466]
[1730200266457,3.86,181.25,181.22,2.7604]
[1730200267152,6.6201,181.25,181.22,2.7604]
[1730200267651,3.86,181.25,181.22,2.7604]
[1730200268246,3.86,181.25,181.2,5.93941466]
[1730200268451,2.7604,181.24,181.21,2.7605]
[1730200268747,2.7604,181.24,181.2,5.93941466]
[1730200269050,3.86,181.25,181.22,2.7605]
[1730200269353,6.6201,181.25,181.22,2.7605]
[1730200270044,2.7597,181.28,181.25,2.76]
[1730200270245,3.86,181.27,181.25,2.76]
[1730200270550,3.86,181.26,181.23,5.93941466]
[1730200272345,3.86,181.26,181.25,2.76]
[1730200273955,3.86,181.26,181.23,5.93941466]
[1730200274551,8.69891466,181.29,181.25,2.7601]
[1730200274762,3.86,181.28,181.25,2.7601]
[1730200275452,6.6197,181.28,181.25,2.7601]
[1730200276655,3.86,181.28,181.27,2.7598]
[1730200276858,3.86,181.28,181.26,5.93941466]
[1730200277054,5.93941466,181.34,181.26,5.93941466]
[1730200277354,6.6192,181.31,181.28,8.69891466]
[1730200278647,5.93941466,181.29,181.26,2.7598]
[1730200278857,5.93941466,181.29,181.19,349.5218]
[1730200278858,5.93941466,181.29,181.23,5.93941466]
[1730200280452,2.7597,181.28,181.23,5.93941466]
[1730200280648,3.86,181.27,181.23,5.93941466]
[1730200280849,3.86,181.27,181.24,5.93941466]
[1730200281345,3.86,181.27,181.25,2.76]
[1730200281956,2.7599,181.26,181.24,2.7602]
[1730200282160,3.86,181.27,181.24,2.7602]
[1730200282768,6.6198,181.27,181.25,2.7601]
[1730200283461,3.86,181.27,181.25,2.7601]
[1730200284458,6.6198,181.27,181.24,2.7601]
[1730200288060,3.86,181.27,181.25,2.7601]
[1730200289163,6.6198,181.27,181.25,2.7601]
[1730200289960,6.6198,181.27,181.23,5.93941466]
[1730200290168,6.6198,181.27,181.24,2.7602]
[1730200297675,3.86,181.27,181.25,2.7601]
[1730200297972,59.62,181.32,181.26,5.93941466]
[1730200298167,3.84,181.31,181.26,5.93941466]
[1730200298373,6.5993,181.31,181.28,2.7595]
[1730200299563,6.5993,181.31,181.26,5.93941466]
[1730200299564,3.84,181.31,181.26,5.93941466]
[1730200299770,3.84,181.31,181.29,2.7594]
[1730200300670,6.5992,181.31,181.28,8.69891466]
[1730200302661,6.5992,181.31,181.28,2.7595]
[1730200302871,8.69881466,181.3,181.27,2.7598]
[1730200303569,2.7595,181.29,181.27,2.7598]
[1730200303769,5.93941466,181.28,181.23,5.93941466]
[1730200303970,3.84,181.27,181.24,2.7602]
[1730200304766,6.5999,181.27,181.24,2.7602]
[1730200305578,5.93941466,181.26,181.22,2.7604]
[1730200305876,5.93941466,181.26,181.21,5.93941466]
[1730200306271,8.69941466,181.26,181.23,2.7603]
[1730200308272,3.84,181.27,181.24,2.7601]
[1730200309174,3.84,181.27,181.22,5.93941466]
[1730200309472,3.84,181.27,181.24,2.7602]
[1730200309678,6.5998,181.27,181.24,2.7602]